bitfinex/quotes_SOLUSD_20250616
["timestamp","ask_amount","ask_price","bid_price","bid_amount"]
[1750058114559,30.67729675,157.32,157.26,15.89724023]
[1750058114740,30.67729675,157.32,157.27,4.67729675]
[1750058115342,26.0,157.32,157.27,4.67729675]
[1750058115637,30.67729675,157.32,157.27,4.67729675]
[1750058115812,30.67729675,157.32,157.28,6.35808748]
[1750058117129,30.67729675,157.32,157.26,15.89724023]
[1750058117446,30.67729675,157.32,157.27,4.67729675]
[1750058118266,30.67729675,157.32,157.28,6.35808748]
[1750058121044,28.99104679,157.32,157.27,2.99104679]
[1750058121948,28.99104679,157.32,157.26,15.89724023]
[1750058122162,28.99104679,157.32,157.27,2.99104679]
[1750058123075,28.99104679,157.32,157.28,6.35808748]
[1750058124668,2.99104679,157.32,157.28,6.35808748]
[1750058128769,26.0,157.34,157.28,6.35808748]
[1750058128976,2.99104679,157.32,157.28,6.35808748]
[1750058131300,18.95059481,157.35,157.28,25.24435298]
[1750058131477,2.99104679,157.34,157.29,2.99104679]
[1750058131965,2.99104679,157.33,157.29,2.99104679]
[1750058132580,2.99104679,157.33,157.28,25.24435298]
[1750058133895,18.95059481,157.35,157.28,25.24435298]
[1750058134101,2.99104679,157.33,157.28,25.24435298]
[1750058134673,18.95059481,157.35,157.28,25.24435298]
[1750058134901,2.99104679,157.33,157.28,25.24435298]
[1750058136176,18.95059481,157.35,157.28,25.24435298]
[1750058136396,2.99104679,157.33,157.28,25.24435298]
[1750058138403,18.95059481,157.35,157.28,22.25330619]
[1750058138610,2.99104679,157.32,157.28,22.25330619]
[1750058140020,2.99104679,157.32,157.28,25.24435298]
[1750058140508,2.99104679,157.32,157.28,22.25330619]
[1750058140832,2.99104679,157.31,157.28,6.35808748]
[1750058141020,18.95059481,157.35,157.28,6.35808748]
[1750058141326,2.99104679,157.32,157.28,6.35808748]
[1750058141708,2.99104679,157.32,157.27,15.8961175]
[1750058141917,2.99104679,157.32,157.27,18.88716429]
[1750058142725,2.99104679,157.32,157.27,15.8961175]
[1750058143020,2.99104679,157.32,157.27,18.88716429]
[1750058143405,2.99104679,157.32,157.27,15.8961175]
[1750058143607,2.99104679,157.3,157.26,6.35889609]
[1750058145815,26.0,157.32,157.26,6.35889609]
[1750058145816,2.99104679,157.31,157.26,9.34994288]
[1750058146718,2.99104679,157.3,157.26,9.34994288]
[1750058147732,2.99104679,157.3,157.26,25.24718311]
[1750058147915,2.99104679,157.31,157.26,25.24718311]
[1750058149213,2.99104679,157.31,157.26,18.88828702]
[1750058149419,2.99104679,157.3,157.26,15.89724023]
[1750058150328,2.99104679,157.3,157.26,22.25613632]
[1750058153218,26.0,157.32,157.26,22.25613632]
[1750058153431,2.99104679,157.3,157.26,22.25613632]
[1750058154230,2.99104679,157.3,157.26,15.89724023]
[1750058155536,26.0,157.32,157.26,22.25613632]
[1750058155855,2.99104679,157.31,157.26,22.25613632]
[1750058157727,2.99104679,157.3,157.26,22.25613632]
[1750058158537,2.99104679,157.31,157.26,25.24718311]
[1750058158932,2.99104679,157.3,157.26,22.25613632]
[1750058160679,2.99104679,157.3,157.26,15.89724023]
[1750058161332,26.0,157.32,157.26,15.89724023]
[1750058161644,2.99104679,157.3,157.26,15.89724023]
[1750058163535,2.99104679,157.3,157.26,22.25613632]
[1750058164451,26.0,157.32,157.26,22.25613632]
[1750058164664,2.99104679,157.31,157.26,25.24718311]
[1750058165431,2.99104679,157.3,157.26,22.25613632]
[1750058166960,2.99104679,157.29,157.26,6.35889609]
[1750058167369,26.0,157.32,157.26,6.35889609]
[1750058167590,2.99104679,157.29,157.26,6.35889609]
[1750058168064,26.0,157.32,157.25,22.25755166]
[1750058168250,2.99104679,157.3,157.25,22.25755166]
[1750058169472,2.99104679,157.29,157.25,22.25755166]
[1750058171083,26.0,157.31,157.26,2.99104679]
[1750058171251,2.99104679,157.3,157.25,22.25755166]
[1750058171452,2.99104679,157.3,157.25,25.24859845]
[1750058171859,2.99104679,157.29,157.25,22.25755166]
[1750058173159,26.0,157.31,157.25,6.35930047]
[1750058173160,2.99104679,157.28,157.25,6.35930047]
[1750058173366,2.99104679,157.27,157.25,6.35930047]
[1750058173560,26.0,157.3,157.25,6.35930047]
[1750058173767,2.99104679,157.28,157.25,6.35930047]
[1750058173969,26.0,157.3,157.25,6.35930047]
[1750058174167,2.99104679,157.29,157.25,6.35930047]
[1750058175172,4.7655639,157.32,157.25,54.05405404]
[1750058175497,2.99104679,157.33,157.28,2.99104679]
[1750058175696,2.99104679,157.31,157.26,30.49104679]
[1750058175994,30.76423323,157.34,157.26,27.5]
[1750058176184,2.99104679,157.32,157.26,27.5]
[1750058176383,2.99104679,157.31,157.26,27.5]
[1750058176572,2.99104679,157.3,157.26,27.5]
[1750058177292,2.99104679,157.3,157.27,6.35849176]
[1750058178611,2.99104679,157.29,157.27,6.35849176]
[1750058179269,26.0,157.32,157.27,6.35849176]
[1750058179511,2.99104679,157.3,157.27,6.35849176]
[1750058180499,2.99104679,157.29,157.27,6.35849176]
[1750058181519,2.99104679,157.29,157.25,22.25755166]
[1750058181676,2.99104679,157.28,157.25,22.25755166]
[1750058184539,26.0,157.32,157.25,22.25755166]
[1750058185022,2.99104679,157.29,157.25,22.25755166]
[1750058186196,26.0,157.31,157.25,22.25755166]
[1750058186498,2.99104679,157.29,157.25,22.25755166]
[1750058187307,28.99104679,157.31,157.26,2.99104679]
[1750058188523,26.0,157.31,157.27,6.35849176]
[1750058188706,2.99104679,157.3,157.27,6.35849176]
[1750058190612,26.0,157.31,157.25,25.24859845]
[1750058190810,2.99104679,157.3,157.25,22.25755166]
[1750058191132,2.99104679,157.29,157.25,22.25755166]
[1750058193835,2.99104679,157.29,157.25,6.35930047]
[1750058194826,2.99104679,157.29,157.24,6.3597049]
[1750058195030,2.99104679,157.29,157.24,25.25001396]
[1750058195215,4.7682562,157.33,157.24,25.25001396]
[1750058195412,2.99104679,157.29,157.24,25.25001396]
[1750058198047,26.0,157.3,157.24,25.25001396]
[1750058198222,2.99104679,157.29,157.24,25.25001396]
[1750058198545,2.99104679,157.3,157.25,2.99104679]
[1750058199050,2.99104679,157.31,157.26,25.24718311]
[1750058200324,2.99104679,157.3,157.26,22.25613632]
[1750058201725,26.0,157.32,157.26,22.25613632]
[1750058202047,2.99104679,157.31,157.26,18.88828702]
[1750058202632,2.99104679,157.3,157.26,18.88828702]
[1750058203750,26.0,157.32,157.26,18.88828702]
[1750058203924,2.99104679,157.31,157.26,25.24718311]
[1750058205053,2.99104679,157.3,157.26,25.24718311]
[1750058205552,2.99104679,157.29,157.26,6.35889609]
[1750058205922,2.99104679,157.29,157.25,6.35930047]
[1750058214762,2.99104679,157.29,157.24,9.35075169]
[1750058216257,2.99104679,157.29,157.24,6.3597049]
[1750058216635,2.99104679,157.29,157.24,9.35075169]
[1750058217760,2.99104679,157.29,157.24,6.3597049]
[1750058217958,2.99104679,157.29,157.24,9.35075169]
[1750058218562,2.99104679,157.26,157.24,6.3597049]
[1750058218754,2.99104679,157.26,157.17,89.2]
[1750058218755,44.64964886,157.24,157.15,1.505]
[1750058218937,2.99104679,157.16,157.12,6.36456211]
[1750058219142,2.99104679,157.14,157.12,6.36456211]
[1750058219440,2.99104679,157.15,157.12,6.36456211]
[1750058220433,2.99104679,157.16,157.12,22.2759674]
[1750058221070,4.68277476,157.16,157.12,22.2759674]
[1750058221254,4.76880612,157.23,157.15,4.68277476]
[1750058221453,4.68277476,157.21,157.17,4.68277476]
[1750058221773,4.68277476,157.21,157.16,4.68277476]
[1750058222071,4.68277476,157.2,157.17,6.36253737]
[1750058222662,4.68277476,157.19,157.17,22.26888081]
[1750058224068,4.68277476,157.19,157.17,15.90634344]
[1750058224570,4.68277476,157.2,157.17,15.90634344]
[1750058226147,4.68277476,157.19,157.17,15.90634344]
[1750058226487,4.68277476,157.18,157.16,6.36294222]
[1750058226778,4.68277476,157.17,157.16,6.36294222]
[1750058227144,4.68277476,157.18,157.16,6.36294222]
[1750058228779,4.68277476,157.18,157.15,6.36334712]
[1750058228980,4.68277476,157.17,157.15,6.36334712]
[1750058229990,4.68277476,157.17,157.13,32.08277476]
[1750058229991,4.68277476,157.16,157.12,6.36456211]
[1750058230303,4.68277476,157.14,157.12,6.36456211]
[1750058231065,4.68277476,157.14,157.11,22.27667056]
[1750058233470,20.31374886,157.19,157.11,22.27667056]
[1750058233675,4.68277476,157.14,157.11,22.27667056]
[1750058233871,4.77795885,157.13,157.11,22.27667056]
[1750058234071,4.68277476,157.14,157.11,22.27667056]
[1750058234390,4.77791344,157.13,157.11,22.27667056]
[1750058234580,4.68277476,157.14,157.11,22.27667056]
[1750058234778,4.68277476,157.15,157.11,22.27667056]
[1750058235180,4.77793497,157.14,157.11,22.27667056]
[1750058235366,4.68277476,157.15,157.11,22.27667056]
[1750058235696,4.77791242,157.14,157.12,4.68277476]
[1750058235987,4.68277476,157.18,157.13,4.68277476]
[1750058236189,4.68277476,157.18,157.13,32.08277476]
[1750058236490,4.77772071,157.17,157.13,32.08277476]
[1750058236688,4.77741459,157.16,157.13,32.08277476]
[1750058236993,4.68277476,157.17,157.14,6.36375206]
[1750058237186,4.77741473,157.16,157.14,6.36375206]
[1750058237389,4.77732801,157.15,157.14,6.36375206]
[1750058237703,4.77732902,157.15,157.14,6.36375206]
[1750058237882,9.46045648,157.15,157.14,6.36375206]
[1750058238205,9.46045626,157.15,157.14,6.36375206]
[1750058238406,4.77768299,157.15,157.14,6.36375206]
[1750058238898,9.46046173,157.15,157.12,6.36456211]
[1750058239071,4.68277476,157.13,157.11,6.36487676]
[1750058239271,9.46128522,157.12,157.11,6.36487676]
[1750058239471,9.46143723,157.12,157.11,6.36487676]
[1750058239684,4.68277476,157.12,157.09,6.36577757]
[1750058239878,9.46144187,157.11,157.09,6.36577757]
[1750058240088,4.68277476,157.11,157.09,6.36577757]
[1750058240290,4.77885122,157.1,157.09,6.36577757]
[1750058240588,4.77884213,157.1,157.09,6.36577757]
[1750058240798,4.77884177,157.1,157.09,6.36577757]
[1750058241381,4.68277476,157.12,157.09,6.36577757]
[1750058241692,4.77884498,157.11,157.09,6.36577757]
[1750058241884,4.77884498,157.1,157.09,6.36577757]
[1750058242293,4.778847,157.1,157.09,6.36577757]
[1750058242698,4.77885602,157.1,157.09,6.36577757]
[1750058242903,9.46189357,157.1,157.05,11.12277476]
[1750058243124,4.77928619,157.09,157.06,27.4]
[1750058243424,4.68277476,157.1,157.06,33.7669935]
[1750058243598,4.68277476,157.1,157.06,49.68447726]
[1750058243798,4.68277476,157.11,157.06,54.36725202]
[1750058244015,4.77938468,157.1,157.06,54.36725202]
[1750058244219,4.7793857,157.09,157.06,54.36725202]
[1750058244424,4.68277476,157.11,157.06,54.36725202]
[1750058244814,4.77937654,157.1,157.06,26.96725202]
[1750058245006,4.68277476,157.11,157.06,26.96725202]
[1750058245207,4.77935297,157.1,157.06,54.34725202]
[1750058245413,4.77935398,157.09,157.06,54.34725202]
[1750058245610,4.68277476,157.11,157.06,54.34725202]
[1750058245921,4.77929113,157.1,157.06,54.34725202]
[1750058246147,4.77929214,157.09,157.06,54.34725202]
[1750058246302,4.68277476,157.13,157.08,4.68277476]
[1750058246499,4.68277476,157.13,157.09,4.68277476]
[1750058246717,4.68277476,157.13,157.08,4.68277476]
[1750058247531,4.68277476,157.13,157.09,6.36577757]
[1750058248132,4.68277476,157.13,157.09,11.04855233]
[1750058248310,26.0,157.15,157.09,26.96299627]
[1750058248503,4.68277476,157.13,157.09,26.96299627]
[1750058248704,4.68277476,157.13,157.09,22.28022151]
[1750058250527,26.0,157.15,157.09,26.96299627]
[1750058250734,4.68277476,157.13,157.09,26.96299627]
[1750058251616,4.68277476,157.13,157.09,15.91444394]
[1750058252633,4.68277476,157.13,157.09,22.28022151]
[1750058254011,4.68277476,157.13,157.09,20.5972187]
[1750058255423,4.68277476,157.13,157.09,15.91444394]
[1750058255624,4.77859055,157.12,157.09,15.91444394]
[1750058255815,4.77859055,157.11,157.07,6.36658814]
[1750058256006,4.68277476,157.09,157.07,6.36658814]
[1750058256206,4.77892805,157.08,157.07,6.36658814]
[1750058256406,4.68277476,157.09,157.07,6.36658814]
[1750058256629,4.7794413,157.08,157.07,6.36658814]
[1750058256828,4.68277476,157.09,157.07,6.36658814]
[1750058257019,4.77962381,157.08,157.07,6.36658814]
[1750058257211,4.68277476,157.09,157.07,6.36658814]
[1750058257425,4.77964739,157.08,157.05,22.28575658]
[1750058257626,4.77965042,157.07,157.05,22.28575658]
[1750058257844,4.77965144,157.06,157.05,22.28575658]
[1750058258146,4.77965245,157.06,157.05,22.28575658]
[1750058258350,4.77964358,157.06,157.05,22.28575658]
[1750058259246,4.77964722,157.06,157.05,22.28575658]
[1750058259451,4.68277476,157.09,157.05,22.28575658]
[1750058259649,4.77964418,157.08,157.05,22.28575658]
[1750058259952,4.77965042,157.07,157.05,49.64575658]
[1750058260135,4.77971354,157.06,157.05,49.64575658]
[1750058260459,4.77971455,157.06,157.05,49.64575658]
[1750058260856,4.68277476,157.08,157.05,49.64575658]
[1750058261043,4.77971252,157.07,157.05,49.64575658]
[1750058261223,4.77972241,157.06,157.05,49.64575658]
[1750058261428,4.77972241,157.06,157.05,22.28575658]
[1750058261756,4.77969985,157.06,157.05,49.64575658]
[1750058262255,4.77974435,157.06,157.05,49.64575658]
[1750058262835,4.68277476,157.09,157.05,49.64575658]
[1750058263347,4.77974132,157.08,157.05,49.64575658]
[1750058263558,4.7797659,157.07,157.05,49.64575658]
[1750058263734,4.77976692,157.06,157.05,49.64575658]
[1750058263935,4.68277476,157.09,157.05,49.64575658]
[1750058264150,4.77976489,157.08,157.05,49.64575658]
[1750058264344,4.68277476,157.09,157.05,49.64575658]
[1750058265166,4.77978318,157.08,157.05,49.64575658]
[1750058265459,4.77977112,157.07,157.05,49.64575658]
[1750058265663,4.77977112,157.06,157.05,49.64575658]
[1750058265838,4.68277476,157.09,157.05,49.64575658]
[1750058266370,4.77973047,157.08,157.05,49.64575658]
[1750058266556,4.77973047,157.07,157.05,49.64575658]
[1750058266759,4.68277476,157.09,157.05,49.64575658]
[1750058267072,18.64964886,157.13,157.05,49.64575658]
[1750058267372,4.68277476,157.09,157.05,49.64575658]
[1750058267541,4.77976225,157.08,157.05,49.64575658]
[1750058267866,4.77976225,157.07,157.05,49.64575658]
[1750058268042,4.77969884,157.06,157.05,49.64575658]
[1750058268352,4.68277476,157.09,157.05,49.64575658]
[1750058270167,26.0,157.1,157.05,49.64575658]
[1750058270368,4.68277476,157.09,157.05,54.32853134]
[1750058270668,30.68277476,157.1,157.07,6.36658814]
[1750058276481,4.68277476,157.09,157.07,6.36658814]
[1750058276695,30.68277476,157.1,157.07,6.36658814]
[1750058277182,30.68277476,157.1,157.06,6.3669935]
[1750058278189,26.0,157.1,157.06,11.04976826]
[1750058279884,30.68277476,157.1,157.06,6.3669935]
[1750058281679,4.68277476,157.09,157.06,6.3669935]
[1750058281875,30.68277476,157.1,157.06,6.3669935]
[1750058286394,4.68277476,157.09,157.06,6.3669935]
[1750058287505,4.68277476,157.08,157.04,6.36780438]
[1750058287725,4.68277476,157.06,157.01,27.32]
[1750058287902,4.68277476,157.06,157.01,4.68277476]
[1750058288229,4.68277476,157.06,157.02,6.36861546]
[1750058289110,4.68277476,157.05,157.02,6.36861546]
[1750058290357,4.68277476,157.05,157.01,11.05179584]
[1750058290500,4.68277476,157.06,157.01,6.36902108]
[1750058290699,4.68277476,157.06,157.01,11.05179584]
[1750058292124,4.68277476,157.05,157.0,22.29299362]
[1750058292435,26.0,157.06,157.0,26.97576838]
[1750058292610,4.68277476,157.05,157.0,26.97576838]
[1750058294250,4.68277476,157.04,157.0,6.36942675]
[1750058294424,4.68277476,157.03,157.0,6.36942675]
[1750058294739,4.68277476,157.02,157.0,6.36942675]
[1750058294941,26.0,157.04,157.0,6.36942675]
[1750058295124,4.68277476,157.03,157.0,6.36942675]
[1750058295321,6.2775,157.06,157.0,6.36942675]
[1750058295521,26.0,157.06,157.01,4.68277476]
[1750058295726,30.68277476,157.06,157.01,4.68277476]
[1750058295931,4.68277476,157.05,157.0,11.05220151]
[1750058296110,4.68277476,157.05,157.0,15.92356687]
[1750058296444,26.0,157.06,157.0,20.60634163]
[1750058296836,4.68277476,157.05,157.0,20.60634163]
[1750058298249,30.68277476,157.04,157.0,15.92356687]
[1750058298453,30.68277476,157.04,156.99,11.05260723]
[1750058299734,4.68277476,157.02,156.98,22.85388434]
[1750058299964,18.64964886,157.03,156.98,22.85388434]
[1750058300333,30.68277476,157.0,156.98,22.85388434]
[1750058300552,26.0,157.0,156.98,22.85388434]
[1750058300737,30.68277476,157.0,156.98,22.85388434]
[1750058301167,26.0,157.0,156.98,22.85388434]
[1750058301534,30.68277476,157.0,156.98,22.85388434]
[1750058302278,6.4118,157.05,156.99,4.68277476]
[1750058302567,26.0,157.04,157.0,4.68277476]
[1750058302868,30.68277476,157.04,156.98,29.22407145]
[1750058303058,4.68277476,157.03,156.99,4.68277476]
[1750058303256,20.19964886,157.07,156.98,29.22407145]
[1750058303443,4.68277476,157.02,156.98,29.22407145]
[1750058304358,26.0,157.04,156.98,33.90684621]
[1750058304571,4.68277476,157.03,156.98,33.90684621]
[1750058304755,4.68277476,157.03,156.98,29.22407145]
[1750058304942,4.68277476,157.02,156.98,29.22407145]
[1750058305269,4.68277476,157.02,156.98,22.85388434]
[1750058305446,4.68277476,157.0,156.98,22.85388434]
[1750058305649,51.01747671,157.04,156.96,6.37102154]
[1750058305650,26.0,157.01,156.96,6.37102154]
[1750058305967,4.68277476,157.0,156.96,6.37102154]
[1750058306691,26.0,157.01,156.96,6.37102154]
[1750058306859,4.68277476,157.0,156.96,6.37102154]
[1750058307248,26.0,157.01,156.96,6.37102154]
[1750058307450,4.68277476,156.99,156.96,6.37102154]
[1750058309255,4.68277476,156.98,156.95,6.37138417]
[1750058309457,26.0,157.0,156.95,6.37138417]
[1750058309783,30.68277476,157.0,156.95,11.05415893]
[1750058309960,4.68277476,156.99,156.95,11.05415893]
[1750058310268,4.68277476,156.99,156.95,6.37138417]
[1750058311472,4.68277476,156.99,156.94,4.68277476]
[1750058312258,4.68277476,156.99,156.92,22.3043589]
[1750058312449,4.68277476,156.99,156.94,4.68277476]
[1750058312653,4.68277476,156.99,156.92,22.3043589]
[1750058312960,4.68277476,156.99,156.94,4.68277476]
[1750058313171,4.68277476,156.99,156.92,22.3043589]
[1750058313376,4.68277476,156.99,156.95,6.37145587]
[1750058313558,30.68277476,157.0,156.96,4.68277476]
[1750058314052,30.68277476,157.0,156.95,6.37145587]
[1750058314252,30.68277476,157.0,156.95,11.05423063]
[1750058315073,4.68277476,156.99,156.95,11.05423063]
[1750058315970,4.68277476,156.99,156.95,6.37145587]
[1750058316272,4.68277476,156.99,156.95,11.05423063]
[1750058316653,4.68277476,156.99,156.92,22.3043589]
[1750058316852,4.68277476,156.99,156.95,4.68277476]
[1750058317577,4.68277476,156.99,156.94,4.68277476]
[1750058318673,4.68277476,156.99,156.92,22.3043589]
[1750058318674,26.0,156.98,156.92,6.37267397]
[1750058318972,26.0,156.97,156.92,11.05544873]
[1750058319146,26.0,156.97,156.93,4.68277476]
[1750058319343,30.68277476,156.97,156.92,11.05544873]
[1750058320775,30.68277476,156.97,156.92,6.37267397]
[1750058320952,30.68277476,156.97,156.92,11.05544873]
[1750058321282,26.0,156.97,156.93,4.68277476]
[1750058321773,4.68277476,157.03,156.93,0.28432314]
[1750058321977,4.68277476,157.03,156.98,4.68277476]
[1750058322187,30.68277476,157.03,156.98,4.68277476]
[1750058322757,4.68277476,157.03,156.99,6.36983247]
[1750058323061,30.68277476,157.03,156.99,6.36983247]
[1750058323261,38.16965807,157.03,156.99,6.36983247]
[1750058323567,33.48688331,157.03,156.99,6.36983247]
[1750058323960,38.16965807,157.03,156.99,6.36983247]
[1750058324163,38.16965807,157.03,156.98,4.68277476]
[1750058325088,4.68277476,157.02,156.97,4.68277476]
[1750058325270,4.68277476,157.02,156.95,22.29919726]
[1750058325471,4.68277476,157.02,156.97,4.68277476]
[1750058326064,4.68277476,157.02,156.98,6.37023824]
[1750058326264,33.48688331,157.03,156.98,6.37023824]
[1750058326466,4.68277476,157.02,156.98,11.053013]
[1750058327460,33.48688331,157.03,156.98,11.053013]
[1750058327664,38.16965807,157.03,156.98,11.053013]
[1750058327869,38.16965807,157.03,156.98,6.37023824]
[1750058328069,38.16965807,157.03,156.98,11.053013]
[1750058328270,4.68277476,157.02,156.98,6.37023824]
[1750058328470,4.68277476,157.02,156.98,11.053013]
[1750058328992,38.16965807,157.03,156.98,11.053013]
[1750058329294,38.16965807,157.03,156.98,6.37023824]
[1750058329594,4.68277476,157.02,156.97,4.68277476]
[1750058329770,4.68277476,157.02,156.98,4.68277476]
[1750058330586,38.16965807,157.03,156.99,6.36983247]
[1750058333081,33.48688331,157.03,156.99,6.36983247]
[1750058333281,38.16965807,157.03,156.99,6.36983247]
[1750058333871,33.48688331,157.03,156.99,6.36983247]
[1750058334077,4.68277476,157.02,156.99,6.36983247]
[1750058335599,4.68277476,157.02,156.96,1.544]
[1750058335600,4.68277476,157.02,156.97,6.37064407]
[1750058335771,4.68277476,157.02,156.98,4.68277476]
[1750058337597,33.48688331,157.03,156.99,6.36983247]
[1750058337784,38.16965807,157.03,156.99,6.36983247]
[1750058338190,33.48688331,157.03,156.99,11.05260723]
[1750058339094,38.16965807,157.03,156.97,6.37064407]
[1750058339301,4.68277476,157.02,156.97,11.05341883]
[1750058340106,4.68277476,157.02,156.97,6.37064407]
[1750058340403,4.68277476,157.02,156.97,11.05341883]
[1750058341300,33.48688331,157.03,156.98,4.68277476]
[1750058341482,38.16965807,157.03,156.98,4.68277476]
[1750058342379,4.68277476,157.02,156.98,4.68277476]
[1750058343400,33.48688331,157.03,156.98,4.68277476]
[1750058343401,33.48688331,157.03,156.98,11.05299273]
[1750058343607,4.68277476,157.02,156.98,11.05299273]
[1750058344303,4.68277476,157.02,156.97,11.05341883]
[1750058344507,4.68277476,157.01,156.97,11.05341883]
[1750058344685,39.85513288,157.03,156.97,11.05341883]
[1750058344888,4.68277476,157.01,156.97,11.05341883]
[1750058345082,26.0,157.0,156.97,6.37064407]
[1750058346709,26.0,157.0,156.97,11.05341883]
[1750058347493,26.0,157.0,156.97,6.37064407]
[1750058347807,26.0,157.0,156.94,6.2044]
[1750058348018,30.68277476,156.99,156.94,4.68277476]
[1750058348223,4.68277476,156.99,156.94,4.68277476]
[1750058348588,4.68277476,156.98,156.93,6.27117476]
[1750058349418,4.68277476,156.98,156.94,4.68277476]
[1750058349618,4.68277476,156.98,156.94,11.05451475]
[1750058350208,30.68277476,156.99,156.94,11.05451475]
[1750058350601,26.0,156.98,156.94,11.05451475]
[1750058351008,26.0,156.98,156.94,6.37173999]
[1750058351311,26.0,156.98,156.94,11.05451475]
[1750058351788,30.68277476,156.99,156.94,11.05451475]
[1750058354617,4.68277476,156.98,156.94,11.05451475]
[1750058356720,4.68277476,156.98,156.94,6.37173999]
[1750058356915,26.0,156.99,156.94,11.05451475]
[1750058357123,4.68277476,156.98,156.94,11.05451475]
[1750058357926,30.68277476,156.99,156.94,11.05451475]
[1750058358620,30.68277476,156.99,156.94,6.37173999]
[1750058359119,30.68277476,156.99,156.94,11.05451475]
[1750058359601,30.68277476,156.99,156.95,4.68277476]
[1750058359989,4.68277476,157.01,156.96,4.68277476]
[1750058360194,26.0,157.0,156.96,4.68277476]
[1750058360692,4.75521807,157.02,156.99,4.68277476]
[1750058360910,7.48688331,157.03,157.01,4.68277476]
[1750058361319,7.48688331,157.03,157.0,4.68277476]
[1750058361496,7.48688331,157.03,157.0,11.05184035]
[1750058362025,4.68277476,157.05,157.0,11.05184035]
[1750058362394,26.0,157.04,157.0,6.36906559]
[1750058362593,26.0,157.04,157.0,11.05184035]
[1750058363418,30.68277476,157.04,157.0,11.05184035]
[1750058363616,26.0,157.04,156.98,4.68277476]
[1750058363806,4.68277476,157.03,156.98,4.68277476]
[1750058364531,26.0,157.02,156.98,4.68277476]
[1750058364712,4.68277476,157.01,156.97,4.68277476]
[1750058364927,4.68277476,157.01,156.96,11.0538247]
[1750058365424,30.68277476,157.01,156.97,4.68277476]
[1750058365594,26.0,157.01,156.98,6.37023824]
[1750058367019,26.0,157.01,156.97,11.05333742]
[1750058367222,4.68277476,157.01,156.96,6.37098053]
[1750058367521,30.68277476,157.01,156.96,11.05375529]
[1750058368309,26.0,157.01,156.96,11.05375529]
[1750058368509,26.0,157.0,156.96,11.05375529]
[1750058370033,26.0,157.0,156.96,4.68277476]
[1750058372011,26.0,157.0,156.96,11.05347305]
[1750058373021,30.68277476,157.0,156.96,11.05347305]
[1750058375208,26.0,157.0,156.96,11.05347305]
[1750058375610,26.0,157.0,156.96,4.68277476]
[1750058376016,30.68277476,157.0,156.96,4.68277476]
[1750058376336,30.68277476,157.0,156.95,4.68277476]
[1750058377943,30.68277476,157.0,156.96,11.0538247]
[1750058378233,26.0,157.0,156.96,11.0538247]
[1750058379214,30.68277476,157.0,156.96,6.37104994]
[1750058379809,26.0,157.0,156.96,6.37104994]
[1750058380011,30.68277476,157.0,156.96,11.0538247]
[1750058380539,26.0,157.0,156.96,11.0538247]
[1750058382044,26.0,157.0,156.94,22.30076674]
[1750058382215,30.68277476,157.0,156.95,4.68277476]
[1750058382619,30.68277476,157.0,156.96,4.68277476]
[1750058383437,30.68277476,157.0,156.96,11.05352255]
[1750058384642,26.0,157.0,156.96,11.05352255]
[1750058385151,26.0,157.0,156.96,6.37074779]
[1750058385355,24.70694886,157.07,157.0,6.36942675]
[1750058385563,4.7562123,157.07,157.01,4.68277476]
[1750058385767,14.25595955,157.06,157.01,4.68277476]
[1750058386217,26.0,157.05,157.0,6.36942675]
[1750058386421,26.0,157.05,157.01,4.68277476]
[1750058386641,33.44835135,157.05,157.01,4.68277476]
[1750058387954,38.13112611,157.05,157.01,4.68277476]
[1750058388858,38.13112611,157.05,157.01,6.36902108]
[1750058389148,4.68277476,157.04,157.01,6.36902108]
[1750058389552,4.68277476,157.04,157.0,6.36933147]
[1750058389737,33.44835135,157.05,156.98,17.55473474]
[1750058389738,4.68277476,157.03,156.99,6.36970685]
[1750058390959,4.68277476,157.02,156.99,6.36970685]
[1750058392348,4.68277476,157.02,156.98,6.37013918]
[1750058392557,6.36798812,157.04,156.98,6.37013918]
[1750058392746,4.68277476,157.01,156.98,6.37013918]
[1750058392947,4.68277476,157.02,156.98,6.37013918]
[1750058394264,4.68277476,157.02,156.95,22.29924021]
[1750058394457,4.68277476,157.04,157.0,4.68277476]
[1750058394656,7.44835135,157.05,157.02,4.68277476]
[1750058395030,33.44835135,157.05,157.02,4.68277476]
[1750058395262,33.44835135,157.05,156.98,1.92692314]
[1750058395430,33.44835135,157.05,157.02,4.68277476]
[1750058396446,33.44835135,157.05,157.03,6.36820989]
[1750058399263,33.44835135,157.05,157.01,4.68277476]
[1750058399760,33.44835135,157.05,157.03,4.68277476]
[1750058399958,33.44835135,157.05,157.02,4.68277476]
[1750058400155,33.44835135,157.05,156.99,22.293502]
[1750058400346,33.44835135,157.05,157.01,4.68277476]
[1750058400747,33.44835135,157.05,156.99,22.293502]
[1750058400748,33.44835135,157.05,157.02,4.68277476]
[1750058401586,33.44835135,157.05,157.03,6.36820989]
[1750058404469,33.44835135,157.05,156.99,22.293502]
[1750058404665,38.13112611,157.05,157.01,4.68277476]
[1750058405050,38.13112611,157.05,156.99,22.293502]